fUST/lending_fUST_20241114
["ID","MTS","AMOUNT","RATE_DAILY","PERIOD"]
[342192321,1731579033315,-180162.16611702,0.00021,2]
[342192362,1731579039104,-1461.1108615,0.000199,2]
[342192365,1731579039117,-236.03102666,0.000199,2]
[342192367,1731579039127,-374.97378485,0.00019999,2]
[342192417,1731579043720,-46.23668654,0.00019999,2]
[342192418,1731579043730,-506.52850834,0.00019999,2]
[342192500,1731580231951,-400.0,0.00013973,2]
[342192503,1731580231965,-12.74795637,0.000179,2]
[342192506,1731580231976,-182.0156294,0.000179,2]
[342192509,1731580231986,-424.33240791,0.00018222,2]
[342192564,1731580238356,-439.16315159,0.00018222,2]
[342192565,1731580238366,-149.10508366,0.00018421,2]
[342192566,1731580238377,-100.89491634,0.00018421,2]
[342192567,1731580238387,-540.162,0.00018466,2]
[342192568,1731580238396,-1863.26466671,0.00018634,2]
[342192569,1731580238407,-1000.92543282,0.00018634,2]
[342192582,1731580240166,-135.80990047,0.00018634,2]
[342192583,1731580240178,-199.1968542,0.00019186,2]
[342192584,1731580240189,-300.0,0.00019285,2]
[342192585,1731580240198,-13158.64887887,0.00019286,2]
[342192604,1731580242952,-11741.35112113,0.00019286,2]
[342192605,1731580242962,-199.1968542,0.00019799,2]
[342192606,1731580242974,-7015.625,0.0002,2]
[342192607,1731580242983,-2015.64,0.0002,2]
[342192609,1731580242993,-153.997426,0.00020278,2]
[342192611,1731580243003,-400.0,0.00020447,2]
[342192613,1731580243012,-301.43,0.00020548,3]
[342192614,1731580243022,-5807.53585306,0.000208,2]
[342192615,1731580243031,-492.73719474,0.00020815,2]
[342192616,1731580243040,-1000.0,0.000209,2]
[342192617,1731580243049,-2039.00814083,0.000209,2]
[342192618,1731580243061,-428.27484015,0.000209,2]
[342192619,1731580243070,-258.108,0.00020951,2]
[342192620,1731580243080,-170.70224678,0.00020999,2]
[342192621,1731580243090,-390.97985927,0.00020999,2]
[342192622,1731580243099,-15.11436737,0.00020999,2]
[342192646,1731580685943,-455790.00000005,0.00022,30]
[342192647,1731580686142,-157.38,0.000266,31]
[342192648,1731580686195,-157.38,0.000266,31]
[342192649,1731580686260,-157.38,0.000275,31]
[342192650,1731580686310,-157.38,0.000275,31]
[342192651,1731580686358,-157.38,0.000275,31]
[342192652,1731580686412,-157.38,0.000275,31]
[342192653,1731580686465,-1000.0,0.00028,120]
[342192654,1731580686514,-203.39372,0.000284,120]
[342192655,1731580686559,-157.38,0.000284,31]
[342192656,1731580686603,-157.38,0.000284,31]
[342192657,1731580686650,-157.38,0.000284,31]
[342192658,1731580686693,-157.38,0.000284,31]
[342192659,1731580686735,-53689.32938574,0.00029,30]
[342192660,1731580686776,-1000.0,0.00029,120]
[342192661,1731580686822,-10000.0,0.00029,120]
[342192662,1731580686869,-157.38,0.000293,31]
[342192663,1731580686919,-157.38,0.000293,31]
[342192664,1731580686966,-157.38,0.000293,31]
[342192665,1731580687010,-157.38,0.000293,31]
[342192666,1731580687052,-3601.02709104,0.000294,120]
[342192667,1731580687098,-4648.48452848,0.0003,30]
[342192668,1731580687141,-13013.88435225,0.0003,60]
[342192669,1731580687185,-411.98113626,0.0003,30]
[342192670,1731580687232,-1947.0,0.0003,120]
[342192671,1731580687281,-4965.2360619,0.0003,120]
[342192672,1731580687335,-163.44082827,0.0003,120]
[342192673,1731580687386,-151.0,0.0003,120]
[342192674,1731580687432,-151.0,0.0003,120]
[342192675,1731580687480,-1000.0,0.0003,120]
[342192676,1731580687524,-488.12016582,0.0003,120]
[342192677,1731580687569,-157.38,0.000301,31]
[342192678,1731580687614,-157.38,0.000301,31]
[342192679,1731580687661,-157.38,0.000301,31]
[342192680,1731580687707,-157.38,0.000301,31]
[342192681,1731580687750,-500.0,0.00030136,120]
[342192682,1731580687791,-500.0,0.00030136,120]
[342192683,1731580687835,-500.0,0.00030136,120]
[342192684,1731580687877,-500.0,0.00030136,120]
[342192685,1731580687919,-500.0,0.00030136,120]
[342192686,1731580687962,-500.0,0.00030136,120]
[342192687,1731580688004,-500.0,0.00030136,120]
[342192688,1731580688048,-500.0,0.00030136,120]
[342192689,1731580688092,-427.35031632,0.00030136,120]
[342192690,1731580688140,-1462.29,0.00030137,90]
[342192691,1731580688198,-1115.73541561,0.000302,120]
[342192692,1731580688245,-161.517,0.0003024,120]
[342192693,1731580688290,-166271.33698443,0.000305,30]
[342192694,1731580688335,-150.0,0.00030512,120]
[342192695,1731580688384,-151.0,0.00030904,120]
[342192696,1731580688430,-22687.96121984,0.00030946,90]
[342192697,1731580688478,-1000.0,0.00031,120]
[342192698,1731580688524,-300.0,0.00031,120]
[342192699,1731580688570,-488.0,0.00031,30]
[342192700,1731580688612,-1000.0,0.00031,120]
[342192701,1731580688659,-150.0,0.00031131,120]
[342192702,1731580688704,-151.0,0.00031178,120]
[342192703,1731580688749,-214.72418,0.000312,120]
[342192704,1731580688792,-258.89677,0.000312,120]
[342192705,1731580688834,-200.0,0.000312,120]
[342192706,1731580688880,-856.91481,0.000312,120]
[342192707,1731580688923,-256.91481,0.000312,120]
[342192708,1731580688964,-10000.0,0.00031359,30]
[342192709,1731580689008,-10000.0,0.00031359,30]
[342192710,1731580689049,-10000.0,0.00031359,30]
[342192711,1731580689092,-394.0,0.00031359,30]
[342192712,1731580689136,-1666.66,0.00031506,30]
[342192713,1731580689182,-1666.66,0.00031506,30]
[342192714,1731580689227,-1666.66,0.00031506,30]
[342192715,1731580689268,-1666.66,0.00031506,30]
[342192716,1731580689311,-1666.66,0.00031506,30]
[342192717,1731580689356,-1666.66,0.00031506,30]
[342192718,1731580689402,-1666.66,0.00031506,30]
[342192719,1731580689446,-1666.66,0.00031506,30]
[342192720,1731580689492,-1666.66,0.00031506,30]
[342192721,1731580689536,-1666.66,0.00031506,30]
[342192722,1731580689580,-1666.66,0.00031506,30]
[342192723,1731580689623,-1666.66,0.00031506,30]
[342192724,1731580689670,-1666.66,0.00031506,30]
[342192725,1731580689836,-1666.66,0.00031506,30]
[342192726,1731580689881,-1666.66,0.00031506,30]
[342192727,1731580689925,-1666.66,0.00031506,30]
[342192728,1731580689968,-1666.66,0.00031506,30]
[342192729,1731580690012,-1666.66,0.00031506,30]
[342192730,1731580690053,-1666.66,0.00031506,30]
[342192731,1731580690097,-1666.66,0.00031506,30]
[342192732,1731580690140,-1666.66,0.00031506,30]
[342192733,1731580690183,-1666.66,0.00031506,30]
[342192734,1731580690226,-1666.66,0.00031506,30]
[342192735,1731580690272,-1666.82,0.00031506,30]
[342192736,1731580690319,-155.0,0.00031689,30]
[342192737,1731580690366,-155.0,0.00031689,30]
[342192738,1731580690411,-155.0,0.00031689,30]
[342192739,1731580690454,-155.0,0.00031689,30]
[342192740,1731580690495,-155.0,0.00031689,30]
[342192741,1731580690536,-155.0,0.00031689,30]
[342192742,1731580690577,-159.15014985,0.00031689,30]
[342192743,1731580690618,-9161.96,0.000317,30]
[342192744,1731580690666,-3767.3,0.000317,30]
[342192745,1731580690709,-155.0,0.00031761,30]
[342192746,1731580690753,-258.92464442,0.00031761,30]
[342192747,1731580690794,-151.0,0.00031808,120]
[342192748,1731580690839,-716.73993,0.000319,30]
[342192749,1731580690890,-3601.02709104,0.000319,120]
[342192750,1731580690939,-10116.21069578,0.00032,30]
[342192751,1731580690987,-500.0,0.00032,120]
[342192752,1731580691031,-488.0,0.00032,30]
[342192753,1731580691077,-2073.19619196,0.00032,120]
[342192754,1731580691119,-279.218607,0.00032,30]
[342192755,1731580691169,-500.0,0.00032,30]
[342192756,1731580691213,-500.0,0.00032,30]
[342192757,1731580691256,-500.0,0.00032,30]
[342192758,1731580691298,-500.0,0.00032,30]
[342192759,1731580691340,-500.0,0.00032,30]
[342192760,1731580691388,-500.0,0.00032,30]
[342192761,1731580691432,-500.0,0.00032,30]
[342192762,1731580691479,-500.0,0.00032,30]
[342192763,1731580691521,-500.0,0.00032,30]
[342192764,1731580691567,-500.0,0.00032,30]
[342192765,1731580691609,-500.0,0.00032,30]
[342192766,1731580691653,-792.72196564,0.00032,30]
[342192767,1731580691695,-577.40643922,0.00032,30]
[342192768,1731580691739,-500.0,0.00032,30]
[342192769,1731580691781,-699.58774103,0.00032,30]
[342192770,1731580691820,-700.64244498,0.00032,30]
[342192771,1731580691861,-500.0,0.00032,30]
[342192772,1731580691905,-500.0,0.00032,30]
[342192773,1731580691948,-500.0,0.00032,30]
[342192774,1731580691989,-500.0,0.00032,30]
[342192775,1731580692032,-500.0,0.00032,30]
[342192776,1731580692074,-500.0,0.00032,30]
[342192777,1731580692116,-716.03019862,0.00032,30]
[342192778,1731580692161,-700.0,0.00032,30]
[342192779,1731580692201,-700.0,0.00032,30]
[342192780,1731580692243,-700.0,0.00032,30]
[342192781,1731580692286,-700.0,0.00032,30]
[342192782,1731580692328,-700.0,0.00032,30]
[342192783,1731580692372,-700.0,0.00032,30]
[342192784,1731580692420,-700.0,0.00032,30]
[342192785,1731580692462,-700.0,0.00032,30]
[342192786,1731580692512,-700.0,0.00032,30]
[342192787,1731580692553,-700.0,0.00032,30]
[342192788,1731580692595,-700.0,0.00032,30]
[342192789,1731580692638,-700.0,0.00032,30]
[342192790,1731580692683,-700.0,0.00032,30]
[342192791,1731580692729,-1144.21393964,0.00032,30]
[342192792,1731580692775,-1400.0,0.00032,30]
[342192793,1731580692820,-1400.0,0.00032,30]
[342192794,1731580692865,-1400.0,0.00032,30]
[342192795,1731580692911,-1400.0,0.00032,30]
[342192796,1731580692955,-1400.0,0.00032,30]
[342192797,1731580692999,-1400.0,0.00032,30]
[342192798,1731580693041,-1400.0,0.00032,30]
[342192799,1731580693085,-1400.0,0.00032,30]
[342192800,1731580693129,-1400.0,0.00032,30]
[342192801,1731580693177,-1400.0,0.00032,30]
[342192802,1731580693228,-1400.0,0.00032,30]
[342192803,1731580693270,-1400.0,0.00032,30]
[342192804,1731580693317,-1400.0,0.00032,30]
[342192805,1731580693364,-2316.71209015,0.00032,30]
[342192806,1731580693411,-351.0,0.00032285,30]
[342192807,1731580693457,-151.0,0.00032356,120]
[342192808,1731580693501,-155.0,0.00032362,30]
[342192809,1731580693545,-155.0,0.00032362,30]
[342192810,1731580693590,-155.0,0.00032362,30]
[342192811,1731580693636,-155.0,0.00032362,30]
[342192812,1731580693682,-155.0,0.00032362,30]
[342192813,1731580693728,-159.517949,0.00032362,30]
[342192814,1731580693772,-323.96,0.00032373,30]
[342192815,1731580693816,-526.0,0.0003258,30]
[342192816,1731580693860,-3465.0,0.00032595,30]
[342192817,1731580693904,-214.72418,0.000326,120]
[342192818,1731580693948,-263.35673,0.000326,120]
[342192819,1731580693990,-856.91481,0.000326,120]
[342192820,1731580694034,-151.0,0.00032712,120]
[342192821,1731580694076,-6250.0,0.00032877,120]
[342192822,1731580705752,-48.93212498,0.00030187,120]
[342192823,1731580705797,-1503.0,0.00030187,120]
[342192824,1731580705841,-1880.7168909,0.00030187,120]
[342192825,1731580705885,-1958.79475824,0.00030187,60]
[342192826,1731580705936,-1781.31619507,0.00030187,120]
[342192827,1731580705985,-150.01498315,0.00030187,120]
[342192828,1731580706035,-4012.41716822,0.00030187,120]
[342192829,1731580706082,-1000.0,0.00030187,30]
[342192830,1731580706130,-250.0,0.00030187,30]
[342192831,1731580706179,-250.0,0.00030187,30]
[342192832,1731580706224,-250.0,0.00030187,30]
[342192833,1731580706269,-250.0,0.00030187,30]
[342192834,1731580706315,-172.11750354,0.00030187,30]
[342192835,1731580706365,-512.62443974,0.00030187,120]
[342192836,1731580706414,-2114.0735058,0.00030187,30]
[342192837,1731580706462,-238.09502874,0.00030187,30]
[342192838,1731580706513,-1031.46119572,0.00030187,120]
[342192839,1731580706560,-194.17266441,0.00030187,120]
[342192840,1731580706609,-667.57735011,0.00030187,120]
[342192841,1731580706655,-2037.95434231,0.00030187,30]
[342192842,1731580706703,-364.30445302,0.00030187,30]
[342192843,1731580706749,-306.17370576,0.00030187,120]
[342192844,1731580706795,-2101.87136379,0.00030187,30]
[342192845,1731580706846,-1569.76979333,0.00030187,120]
[342192846,1731580707072,-6211.89728068,0.00030187,120]
[342192847,1731580707116,-319.58843286,0.00030187,120]
[342192848,1731580707160,-1383.46408346,0.00030187,120]
[342192849,1731580707204,-1748.63489713,0.00030187,120]
[342192850,1731580707248,-257.38880174,0.00030187,120]
[342192851,1731580707296,-5399.86923634,0.00030187,120]
[342192852,1731580707340,-1473.59565206,0.00030187,30]
[342192853,1731580707385,-1299.44611368,0.00030187,90]
[342192854,1731580707432,-180.80585676,0.00030187,120]
[342192855,1731580707475,-1431.0,0.00030187,30]
[342192856,1731580707518,-1394.01572,0.00030187,30]
[342192857,1731580707559,-1004.79975175,0.00030187,30]
[342192858,1731580707603,-1805.0,0.00030187,30]
[342192859,1731580707648,-3000.0,0.00030187,105]
[342192860,1731580707692,-1000.0,0.00030187,120]
[342192861,1731580707736,-1353.0,0.00030187,36]
[342192862,1731580707781,-1000.0,0.00030187,120]
[342192863,1731580707826,-370.699999,0.00030187,120]
[342192864,1731580707871,-1705.26090685,0.00030187,120]
[342192865,1731580707915,-174.74130341,0.00030187,30]
[342192866,1731580707959,-953398.22733544,0.00030187,30]
[342192867,1731580708005,-150.0,0.00030187,90]
[342192868,1731580708053,-6454.849999,0.00030187,120]
[342192869,1731580708098,-14201.79202044,0.00030187,120]
[342192870,1731580708144,-150.0,0.00030187,30]
[342192871,1731580708190,-171.720681,0.00030187,30]
[342192872,1731580708233,-250.0,0.00030187,30]
[342192873,1731580708276,-250.0,0.00030187,30]
[342192874,1731580708322,-250.0,0.00030187,30]
[342192875,1731580708367,-250.0,0.00030187,30]
[342192876,1731580708410,-250.0,0.00030187,30]
[342192877,1731580708451,-250.0,0.00030187,30]
[342192878,1731580708495,-250.0,0.00030187,30]
[342192879,1731580708538,-250.0,0.00030187,30]
[342192880,1731580708583,-250.0,0.00030187,30]
[342192881,1731580708626,-250.0,0.00030187,30]
[342192882,1731580708671,-250.0,0.00030187,30]
[342192883,1731580708715,-250.0,0.00030187,30]
[342192884,1731580720805,1448.91732123,0.0003018,30]
[342192885,1731580835121,346.93847,0.00027,120]
[342192889,1731581248148,162.08015,0.00023836,80]
[342192890,1731581248340,162.08015,0.00023836,119]
[342192950,1731581431994,-731.89512444,0.00013873,2]
[342192952,1731581432004,-395.946234,0.00013973,2]
[342192954,1731581432013,-314.268155,0.00017826,2]
[342192955,1731581432023,-6521.1134476,0.00018381,2]
[342192956,1731581432033,-2225.6465291,0.00018481,2]
[342192958,1731581432042,-300.0,0.00018552,2]
[342192959,1731581432052,-300.0,0.00018553,2]
[342192961,1731581432061,-2147.54144,0.00018554,2]
[342192962,1731581432071,-24880.0,0.00018881,2]
[342192963,1731581432080,-175.220229,0.00019178,2]
[342192965,1731581432089,-165.893677,0.00019178,2]
[342192967,1731581432099,-2147.54144,0.00019239,2]
[342192968,1731581432109,-2147.54144,0.00019924,2]
[342192970,1731581432118,-1272.21969921,0.00019924,2]
[342192971,1731581432128,-7015.625,0.0002,2]
[342192972,1731581432137,-420.0,0.00020232,2]
[342192973,1731581432148,-420.0,0.00020407,2]
[342192974,1731581432157,-395.946234,0.00020447,2]
[342192975,1731581432167,-6934.25852089,0.00020576,2]
[342192976,1731581432179,-786.81,0.0002089,3]
[342192977,1731581432189,-500.0,0.00020899,2]
[342192978,1731581432199,-500.0,0.00020899,2]
[342192979,1731581432209,-499.99999999,0.00020899,2]
[342192980,1731581432219,-500.0,0.00020899,2]
[342192981,1731581432228,-500.0,0.00020899,2]
[342192982,1731581432238,-500.0,0.00020899,2]
[342192983,1731581432247,-500.0,0.00020899,2]
[342192984,1731581432257,-358.22405148,0.00020899,2]
[342192985,1731581432267,-500.0,0.00020899,2]
[342192986,1731581432277,-500.0,0.00020899,2]
[342192987,1731581432286,-500.0,0.00020899,2]
[342192988,1731581432295,-500.0,0.00020899,2]
[342192989,1731581432304,-500.0,0.00020899,2]
[342192990,1731581432313,-500.0,0.00020899,2]
[342192991,1731581432322,-500.0,0.00020899,2]
[342192992,1731581432331,-500.0,0.00020899,2]
[342192993,1731581432340,-500.0,0.00020899,2]
[342192994,1731581432349,-461.41528111,0.00020899,2]
[342192995,1731581432358,-500.0,0.00020899,2]
[342192996,1731581432367,-500.0,0.00020899,2]
[342192997,1731581432377,-500.0,0.00020899,2]
[342192998,1731581432386,-500.0,0.00020899,2]
[342192999,1731581432395,-521.58067099,0.00020899,2]
[342193000,1731581432404,-500.0,0.00020899,2]
[342193001,1731581432413,-500.0,0.00020899,2]
[342193002,1731581432423,-500.0,0.00020899,2]
[342193003,1731581432435,-500.0,0.00020899,2]
[342193004,1731581432446,-500.0,0.00020899,2]
[342193005,1731581432455,-500.0,0.00020899,2]
[342193006,1731581432467,-500.0,0.00020899,2]
[342193007,1731581432476,-500.0,0.00020899,2]
[342193008,1731581432485,-500.0,0.00020899,2]
[342193009,1731581432494,-500.0,0.00020899,2]
[342193010,1731581432503,-500.0,0.00020899,2]
[342193011,1731581432518,-500.0,0.00020899,2]
[342193012,1731581432527,-500.0,0.00020899,2]
[342193013,1731581432536,-500.0,0.00020899,2]
[342193014,1731581432546,-500.0,0.00020899,2]
[342193015,1731581432556,-500.0,0.00020899,2]
[342193016,1731581432565,-56395.74047986,0.000209,2]
[342193017,1731581432574,-1000.0,0.000209,2]
[342193018,1731581432583,-2220.5546829,0.000209,2]
[342193019,1731581432594,-500.0,0.00020973,2]
[342193020,1731581432605,-162.02863713,0.00020973,2]
[342193021,1731581432614,-502.73830547,0.00020973,2]
[342193022,1731581432625,-500.0,0.00020973,2]
[342193023,1731581432635,-500.0,0.00020973,2]
[342193024,1731581432647,-150.01,0.00020999,2]
[342193025,1731581432656,-3353.8349119,0.00020999,2]
[342193026,1731581432667,-137.93118616,0.00020999,2]
[342193027,1731581432679,-578.06305685,0.00020999,2]
[342193028,1731581432688,-161.99197256,0.00020999,2]
[342193029,1731581432697,-34145.56797362,0.00021,2]
[342193030,1731581435467,313.55235,0.00027,120]
[342193044,1731581438166,-7015.625,0.0002,2]
[342193045,1731581438178,-10689.24804625,0.00021,2]
[342193096,1731581440007,-91127.91122738,0.00021,2]
[342193097,1731581442186,1333.0,0.00026137,120]
[342193211,1731581462860,-1219957.51900528,0.00021,2]
[342193212,1731581463072,-1510.229999,0.00021,2]
[342193213,1731581463465,-5111.89943611,0.0002,2]
[342193215,1731581614155,500.0,0.00027,60]
[342193216,1731581680614,268.0,0.00027,60]
[342193911,1731581717499,500.0,0.00027,60]
[342199548,1731582084655,162.08015,0.00023836,120]
[342205430,1731582523413,172.876,0.00027,60]
[342205431,1731582536838,172.887,0.00027,60]
[342205432,1731582551720,172.877,0.00027,60]
[342205435,1731582615435,172.886,0.00027,60]
[342205436,1731582625901,172.861,0.00027,60]
[342205445,1731582632282,-367.75492471,0.00013973,2]
[342205446,1731582632294,-32.24507529,0.00013973,2]
[342205447,1731582632304,-386.26593734,0.0001822,2]
[342205448,1731582632361,-2613.73406266,0.0001822,2]
[342205449,1731582632375,-4768.56546,0.00018264,2]
[342205450,1731582632385,-314.268155,0.00018595,2]
[342205451,1731582632395,-187.72,0.00018776,2]
[342205452,1731582632405,-300.0,0.00018785,2]
[342205453,1731582632414,-300.0,0.00018785,2]
[342205454,1731582632424,-21328.7788197,0.00018786,2]
[342205455,1731582632433,-415.6070079,0.00018866,2]
[342205456,1731582632443,-4768.56546,0.00018949,2]
[342205457,1731582632452,-192.211677,0.00019178,2]
[342205458,1731582632461,-2302.1145944,0.00019384,2]
[342205459,1731582632471,-4768.56546,0.00019634,2]
[342205460,1731582632481,-193.20290417,0.000197,2]
[342205461,1731582632490,-206.487,0.000199,2]
[342205462,1731582632500,-1903.72556389,0.0002,2]
[342205463,1731582632509,-6538.58157517,0.0002,2]
[342205464,1731582632675,-477.04342483,0.0002,2]
[342205465,1731582632685,-152.0,0.00020099,2]
[342205466,1731582632695,-372.4355446,0.00020447,2]
[342205467,1731582632709,-27.5644554,0.00020447,2]
[342205468,1731582632719,-420.0,0.0002048,2]
[342205469,1731582632728,-172.936,0.0002061,2]
[342205470,1731582632738,-138.82864189,0.00020648,2]
[342205471,1731582632750,-1305.7423943,0.00020648,2]
[342205472,1731582632759,-420.0,0.00020664,2]
[342205473,1731582632768,-1095.11971412,0.000208,2]
[342205514,1731582638384,-310.86526571,0.00019634,2]
[342205515,1731582638471,-752.2438198,0.00019634,2]
[342205516,1731582638481,-15213.33082864,0.000208,2]
[342205517,1731582638491,-500.0,0.00020899,2]
[342205518,1731582638500,-500.0,0.00020899,2]
[342205519,1731582638510,-500.0,0.00020899,2]
[342205520,1731582638520,-500.75981233,0.00020899,2]
[342205521,1731582638530,-500.0,0.00020899,2]
[342205522,1731582638540,-379.86850077,0.00020899,2]
[342205523,1731582638550,-500.0,0.00020899,2]
[342205524,1731582638559,-500.0,0.00020899,2]
[342205525,1731582638569,-500.0,0.00020899,2]
[342205526,1731582638579,-500.0,0.00020899,2]
[342205527,1731582638588,-500.0,0.00020899,2]
[342205528,1731582638598,-500.0,0.00020899,2]
[342205529,1731582638608,-520.63947016,0.00020899,2]
[342205530,1731582638618,-500.0,0.00020899,2]
[342205531,1731582638630,-466.66763837,0.00020899,2]
[342205532,1731582638639,-500.0,0.00020899,2]
[342205533,1731582638650,-355.49577266,0.00020899,2]
[342205534,1731582638659,-500.0,0.00020899,2]
[342205535,1731582638669,-500.0,0.00020899,2]
[342205536,1731582638679,-500.0,0.00020899,2]
[342205537,1731582638690,-500.0,0.00020899,2]
[342205538,1731582638700,-500.0,0.00020899,2]
[342205539,1731582638709,-500.0,0.00020899,2]
[342205540,1731582638718,-500.0,0.00020899,2]
[342205541,1731582638728,-500.0,0.00020899,2]
[342205542,1731582638738,-500.0,0.00020899,2]
[342205543,1731582638748,-500.0,0.00020899,2]
[342205544,1731582638757,-500.0,0.00020899,2]
[342205545,1731582638767,-326.74492198,0.00020899,2]
[342205546,1731582638777,-500.0,0.00020899,2]
[342205547,1731582638786,-500.0,0.00020899,2]
[342205548,1731582638795,-500.0,0.00020899,2]
[342205549,1731582638805,-500.0,0.00020899,2]
[342205550,1731582638814,-247.24675319,0.00020899,2]
[342205551,1731582638823,-500.0,0.00020899,2]
[342205552,1731582638833,-500.0,0.00020899,2]
[342205553,1731582638842,-500.0,0.00020899,2]
[342205554,1731582638851,-500.0,0.00020899,2]
[342205555,1731582638860,-500.0,0.00020899,2]
[342205556,1731582638870,-500.0,0.00020899,2]
[342205557,1731582638887,-500.0,0.00020899,2]
[342205558,1731582638897,-500.0,0.00020899,2]
[342205559,1731582638906,-500.0,0.00020899,2]
[342205560,1731582638915,-26637.00248182,0.000209,2]
[342205577,1731582640468,-2011.83592521,0.000209,2]
[342205578,1731582640480,-2723.01,0.000209,2]
[342205579,1731582640491,-522.82500179,0.000209,2]
[342205584,1731582643362,-753.66719047,0.0002,2]
[342205650,1731582688289,172.938,0.00027,60]
[342205651,1731582727265,172.911,0.00027,60]
[342205652,1731582741888,172.93,0.00027,60]
[342205659,1731583007108,618.54848045,0.00026137,120]
[342206012,1731583091271,512.89013564,0.00027,60]
[342207569,1731583324924,159.579,0.00027,60]
[342207570,1731583333359,159.569,0.00027,60]
[342207571,1731583345448,159.602,0.00027,60]
[342207573,1731583552741,159.604,0.00027,60]
[342207574,1731583563806,159.58,0.00027,60]
[342207575,1731583623400,1277.0,0.00027,60]
[342207578,1731583726013,343.32842003,0.00024,120]
[342207579,1731583729712,192.28709465,0.00027,120]
[342207585,1731583741436,301.43,0.00025,120]
[342207622,1731583832387,-389.323169,0.00013973,2]
[342207624,1731583832397,-2096.98763924,0.00018157,2]
[342207626,1731583832410,-3091.64035686,0.00018157,2]
[342207628,1731583832419,-428.6661847,0.00018298,2]
[342207630,1731583832429,-397.56745533,0.00019078,2]
[342207632,1731583832440,-300.0,0.00019176,2]
[342207633,1731583832449,-300.0,0.00019176,2]
[342207634,1731583832459,-500.0,0.00019177,2]
[342207636,1731583832469,-500.0,0.00019177,2]
[342207637,1731583832479,-369.63832466,0.00019177,2]
[342207638,1731583832489,-360.8051948,0.00019177,2]
[342207639,1731583832499,-239.90914103,0.00019177,2]
[342207640,1731583832509,-500.0,0.00019177,2]
[342207641,1731583832518,-619.66011396,0.00019177,2]
[342207642,1731583832528,-246.74770387,0.00019177,2]
[342207643,1731583832537,-248.78179115,0.00019177,2]
[342207644,1731583832547,-451.75504646,0.00019177,2]
[342207645,1731583832556,-250.51827043,0.00019177,2]
[342207646,1731583832567,-708.73939034,0.00019178,2]
[342207647,1731583832576,-400.1399312,0.00019178,2]
[342207648,1731583832587,-500.0,0.00019178,2]
[342207649,1731583832602,-500.0,0.00019178,2]
[342207650,1731583832612,-503.26219396,0.00019178,2]
[342207651,1731583832622,-500.0,0.00019178,2]
[342207652,1731583832631,-503.18260888,0.00019178,2]
[342207653,1731583832640,-500.0,0.00019178,2]
[342207654,1731583832649,-500.0,0.00019178,2]
[342207655,1731583832659,-500.0,0.00019178,2]
[342207656,1731583832669,-691.03,0.00019178,2]
[342207657,1731583832679,-200.0,0.00019178,2]
[342207658,1731583832689,-500.0,0.00019178,2]
[342207659,1731583832699,-150.62019491,0.00019178,2]
[342207660,1731583832709,-500.0,0.00019178,2]
[342207661,1731583832719,-568.60093428,0.00019178,2]
[342207662,1731583832729,-500.0,0.00019178,2]
[342207663,1731583832739,-500.0,0.00019178,2]
[342207664,1731583832748,-500.0,0.00019178,2]
[342207665,1731583832758,-500.0,0.00019178,2]